[Event "Titled Tuesday Blitz December 13 Late 2022"]
[White "Andrews, Todd"]
[Black "Rosen, Eric"]
[WhiteFideId "2012456"]
[BlackFideId "2032562"]
[WhiteElo "2399"]
[BlackElo "2362"]
[Result "0-1"]
[Round "11"]
[TimeControl "180+1"]
[Date "2022.12.13"]
[WhiteClock "0:00:06"]
[BlackClock "0:00:05"]

1. e4 {[%clk 0:03:00]}  e5 {[%clk 0:03:00]} 2. Nf3 {[%clk 0:03:00]}  Nf6 {[%clk 0:03:00]} 3. d4 {[%clk 0:02:54]}  Nxe4 {[%clk 0:03:00]} 4. Bd3 {[%clk 0:02:51]}  Nc6 {[%clk 0:03:00]} 5. dxe5 {[%clk 0:02:48]}  d5 {[%clk 0:02:52]} 6. exd6 {[%clk 0:02:44]}  Nxd6 {[%clk 0:02:52]} 7. O-O {[%clk 0:02:43]}  Be7 {[%clk 0:02:52]} 8. Re1 {[%clk 0:02:38]}  O-O {[%clk 0:02:52]} 9. h3 {[%clk 0:02:37]}  Bf5 {[%clk 0:02:37]} 10. Bf4 {[%clk 0:02:32]}  Bf6 {[%clk 0:02:23]} 11. Nc3 {[%clk 0:02:31]}  Bxc3 {[%clk 0:02:14]} 12. bxc3 {[%clk 0:02:31]}  Qf6 {[%clk 0:02:00]} 13. Bxd6 {[%clk 0:02:26]}  cxd6 {[%clk 0:01:59]} 14. Rb1 {[%clk 0:02:11]}  Rab8 {[%clk 0:01:45]} 15. Rb5 {[%clk 0:01:58]}  Bg6 {[%clk 0:01:35]} 16. Qd2 {[%clk 0:01:33]}  Rfc8 {[%clk 0:01:15]} 17. Rd5 {[%clk 0:01:23]}  Ne7 {[%clk 0:01:10]} 18. Rd4 {[%clk 0:01:19]}  Bxd3 {[%clk 0:00:52]} 19. Qxd3 {[%clk 0:01:11]}  Nf5 {[%clk 0:00:50]} 20. Rf4 {[%clk 0:00:46]}  g6 {[%clk 0:00:50]} 21. g4 {[%clk 0:00:32]}  Rxc3 {[%clk 0:00:50]} 22. Qd2 {[%clk 0:00:21]}  Rxf3 {[%clk 0:00:21]} 23. Rxf3 {[%clk 0:00:21]}  Qd4 {[%clk 0:00:21]} 24. Qxd4 {[%clk 0:00:15]}  Nxd4 {[%clk 0:00:22]} 25. Rd3 {[%clk 0:00:12]}  Nxc2 {[%clk 0:00:18]} 26. Rb1 {[%clk 0:00:09]}  b5 {[%clk 0:00:11]} 27. Rb2 {[%clk 0:00:09]}  Rc8 {[%clk 0:00:05]} 28. Rxd6 {[%clk 0:00:09]}  Kg7 {[%clk 0:00:02]} 29. Rxb5 {[%clk 0:00:08]}  Ne1 {[%clk 0:00:01]} 30. Rb7 {[%clk 0:00:07]}  Nf3+ {[%clk 0:00:01]} 31. Kg2 {[%clk 0:00:06]}  Nh4+ {[%clk 0:00:02]} 32. Kg3 {[%clk 0:00:06]}  g5 {[%clk 0:00:02]} 33. Rdd7 {[%clk 0:00:05]}  Rc3+ {[%clk 0:00:03]} 34. Kh2 {[%clk 0:00:06]}  Rf3 {[%clk 0:00:03]} 35. Rd2 {[%clk 0:00:02]}  a5 {[%clk 0:00:04]} 36. Kg1 {[%clk 0:00:02]}  a4 {[%clk 0:00:04]} 37. Ra7 {[%clk 0:00:03]}  a3 {[%clk 0:00:04]} 38. Ra4 {[%clk 0:00:03]}  Rxh3 {[%clk 0:00:04]} 39. Rc2 {[%clk 0:00:02]}  Rd3 {[%clk 0:00:04]} 40. Ra6 {[%clk 0:00:01]}  h6 {[%clk 0:00:03]} 41. Kf1 {[%clk 0:00:01]}  Rf3 {[%clk 0:00:03]} 42. Ke2 {[%clk 0:00:02]}  Rf4 {[%clk 0:00:03]} 43. Ra7 {[%clk 0:00:02]}  Re4+ {[%clk 0:00:03]} 44. Kd3 {[%clk 0:00:02]}  Rxg4 {[%clk 0:00:03]} 45. Rxa3 {[%clk 0:00:02]}  Rf4 {[%clk 0:00:04]} 46. Kc3 {[%clk 0:00:02]}  Nf5 {[%clk 0:00:03]} 47. Kb2 {[%clk 0:00:03]}  h5 {[%clk 0:00:04]} 48. Rb3 {[%clk 0:00:04]}  h4 {[%clk 0:00:04]} 49. a4 {[%clk 0:00:05]}  Rxa4 {[%clk 0:00:04]} 50. Ra3 {[%clk 0:00:06]}  Rf4 {[%clk 0:00:04]} 51. Rac3 {[%clk 0:00:06]}  Kg6 {[%clk 0:00:05]} 52. Rd2 {[%clk 0:00:06]}  f6 {[%clk 0:00:05]} 53. Rc6 {[%clk 0:00:07]}  Nd4 {[%clk 0:00:05]} 54. Rxd4 {[%clk 0:00:06]}  Rxd4 {[%clk 0:00:05]} 55. Rc8 {[%clk 0:00:06]}  Rf4 {[%clk 0:00:05]} 56. Rg8+ {[%clk 0:00:07]}  Kf7 {[%clk 0:00:05]} 57. Rh8 {[%clk 0:00:06]}  Rxf2+ {[%clk 0:00:05]} 0-1


[Site "https://www.chess.com"]

[Event "Titled Tuesday Blitz December 13 Late 2022"]
[White "Arbunic Castro, Giovanna"]
[Black "Campelo, Leandro Fabricio"]
[WhiteFideId "3400549"]
[BlackFideId "2103346"]
[WhiteElo "1955"]
[BlackElo "2070"]
[Result "0-1"]
[Round "11"]
[TimeControl "180+1"]
[Date "2022.12.14"]
[WhiteClock "0:00:30"]
[BlackClock "0:01:12"]

1. e4 {[%clk 0:03:00]}  e6 {[%clk 0:02:58]} 2. d4 {[%clk 0:02:59]}  d5 {[%clk 0:02:59]} 3. exd5 {[%clk 0:02:59]}  exd5 {[%clk 0:02:58]} 4. Nf3 {[%clk 0:02:59]}  Nc6 {[%clk 0:02:58]} 5. c4 {[%clk 0:02:58]}  dxc4 {[%clk 0:02:53]} 6. Bxc4 {[%clk 0:02:57]}  Bb4+ {[%clk 0:02:44]} 7. Nc3 {[%clk 0:02:55]}  Nf6 {[%clk 0:02:44]} 8. O-O {[%clk 0:02:50]}  O-O {[%clk 0:02:44]} 9. h3 {[%clk 0:02:48]}  h6 {[%clk 0:02:43]} 10. Be3 {[%clk 0:02:45]}  Bf5 {[%clk 0:02:42]} 11. g4 {[%clk 0:02:38]}  Bg6 {[%clk 0:02:30]} 12. Ne5 {[%clk 0:02:34]}  Nxe5 {[%clk 0:02:23]} 13. dxe5 {[%clk 0:02:34]}  Bxc3 {[%clk 0:02:23]} 14. bxc3 {[%clk 0:02:31]}  Ne4 {[%clk 0:02:20]} 15. f4 {[%clk 0:02:29]}  Nxc3 {[%clk 0:02:06]} 16. Qxd8 {[%clk 0:02:26]}  Raxd8 {[%clk 0:01:57]} 17. f5 {[%clk 0:02:25]}  Bh7 {[%clk 0:01:58]} 18. e6 {[%clk 0:02:21]}  fxe6 {[%clk 0:01:57]} 19. Bxe6+ {[%clk 0:02:20]}  Kh8 {[%clk 0:01:57]} 20. Kg2 {[%clk 0:02:05]}  Nd5 {[%clk 0:01:42]} 21. Bxd5 {[%clk 0:01:55]}  Rxd5 {[%clk 0:01:41]} 22. Rad1 {[%clk 0:01:55]}  Rfd8 {[%clk 0:01:39]} 23. Rxd5 {[%clk 0:01:48]}  Rxd5 {[%clk 0:01:39]} 24. Rf2 {[%clk 0:01:48]}  Bg8 {[%clk 0:01:38]} 25. Rd2 {[%clk 0:01:45]}  Rxd2+ {[%clk 0:01:36]} 26. Bxd2 {[%clk 0:01:45]}  Bxa2 {[%clk 0:01:37]} 27. Kf3 {[%clk 0:01:28]}  Kg8 {[%clk 0:01:37]} 28. Ke4 {[%clk 0:01:27]}  Kf7 {[%clk 0:01:37]} 29. Ke5 {[%clk 0:01:27]}  b6 {[%clk 0:01:33]} 30. h4 {[%clk 0:01:21]}  a5 {[%clk 0:01:31]} 31. g5 {[%clk 0:01:18]}  hxg5 {[%clk 0:01:31]} 32. Bxg5 {[%clk 0:01:17]}  Ke8 {[%clk 0:01:24]} 33. h5 {[%clk 0:01:13]}  Bb1 {[%clk 0:01:22]} 34. h6 {[%clk 0:01:09]}  gxh6 {[%clk 0:01:21]} 35. Bxh6 {[%clk 0:01:09]}  Kd7 {[%clk 0:01:22]} 36. Kf6 {[%clk 0:01:04]}  a4 {[%clk 0:01:20]} 37. Bc1 {[%clk 0:01:02]}  c5 {[%clk 0:01:15]} 38. Ba3 {[%clk 0:01:00]}  Kc6 {[%clk 0:01:15]} 39. Ke6 {[%clk 0:00:56]}  b5 {[%clk 0:01:13]} 40. f6 {[%clk 0:00:55]}  b4 {[%clk 0:01:13]} 41. Bc1 {[%clk 0:00:44]}  Bg6 {[%clk 0:01:13]} 42. f7 {[%clk 0:00:41]}  Bxf7+ {[%clk 0:01:13]} 43. Kxf7 {[%clk 0:00:42]}  c4 {[%clk 0:01:13]} 44. Ke6 {[%clk 0:00:41]}  c3 {[%clk 0:01:11]} 45. Ke5 {[%clk 0:00:40]}  Kc5 {[%clk 0:01:11]} 46. Ke4 {[%clk 0:00:36]}  Kc4 {[%clk 0:01:11]} 47. Ke3 {[%clk 0:00:33]}  b3 {[%clk 0:01:12]} 48. Ba3 {[%clk 0:00:30]}  b2 {[%clk 0:01:12]} 0-1


[Site "https://www.chess.com"]

[Event "Titled Tuesday Blitz December 13 Late 2022"]
[White "Averjanov, Alexey"]
[Black "Shapiro, Daniel"]
[WhiteFideId "14109867"]
[BlackFideId "2001780"]
[WhiteElo "2594"]
[BlackElo "2349"]
[Result "1-0"]
[Round "11"]
[TimeControl "180+1"]
[Date "2022.12.14"]
[WhiteClock "0:01:37"]
[BlackClock "0:00:02"]

1. d4 {[%clk 0:03:00]}  Nf6 {[%clk 0:02:59]} 2. c4 {[%clk 0:03:00]}  e6 {[%clk 0:03:00]} 3. Nf3 {[%clk 0:03:00]}  d5 {[%clk 0:02:59]} 4. e3 {[%clk 0:03:00]}  Be7 {[%clk 0:02:51]} 5. Nbd2 {[%clk 0:03:00]}  O-O {[%clk 0:02:51]} 6. Bd3 {[%clk 0:03:00]}  c5 {[%clk 0:02:44]} 7. dxc5 {[%clk 0:03:00]}  Bxc5 {[%clk 0:02:44]} 8. a3 {[%clk 0:03:00]}  a5 {[%clk 0:02:41]} 9. O-O {[%clk 0:02:58]}  Nc6 {[%clk 0:02:41]} 10. b3 {[%clk 0:02:57]}  e5 {[%clk 0:02:34]} 11. cxd5 {[%clk 0:02:55]}  Nxd5 {[%clk 0:02:30]} 12. Ne4 {[%clk 0:02:55]}  Be7 {[%clk 0:02:24]} 13. Bb2 {[%clk 0:02:55]}  Be6 {[%clk 0:02:04]} 14. Nxe5 {[%clk 0:02:51]}  Nxe5 {[%clk 0:01:43]} 15. Bxe5 {[%clk 0:02:52]}  a4 {[%clk 0:01:19]} 16. bxa4 {[%clk 0:02:51]}  Qa5 {[%clk 0:01:19]} 17. Bb5 {[%clk 0:02:48]}  Rfd8 {[%clk 0:01:13]} 18. Qh5 {[%clk 0:02:47]}  f6 {[%clk 0:00:52]} 19. Bb2 {[%clk 0:02:44]}  Bf7 {[%clk 0:00:50]} 20. Qg4 {[%clk 0:02:42]}  Kh8 {[%clk 0:00:45]} 21. Rad1 {[%clk 0:02:41]}  Nc7 {[%clk 0:00:45]} 22. Rd7 {[%clk 0:02:36]}  Be6 {[%clk 0:00:40]} 23. Rxd8+ {[%clk 0:02:33]}  Rxd8 {[%clk 0:00:38]} 24. Qh4 {[%clk 0:02:32]}  Nxb5 {[%clk 0:00:37]} 25. axb5 {[%clk 0:02:32]}  Qxb5 {[%clk 0:00:37]} 26. Nxf6 {[%clk 0:02:31]}  Qf5 {[%clk 0:00:26]} 27. e4 {[%clk 0:02:17]}  Qg6 {[%clk 0:00:17]} 28. e5 {[%clk 0:02:17]}  Rd2 {[%clk 0:00:10]} 29. Bc3 {[%clk 0:02:09]}  Rc2 {[%clk 0:00:09]} 30. Ba1 {[%clk 0:02:07]}  Rc8 {[%clk 0:00:06]} 31. Rd1 {[%clk 0:02:01]}  h6 {[%clk 0:00:07]} 32. h3 {[%clk 0:02:00]}  gxf6 {[%clk 0:00:07]} 33. exf6 {[%clk 0:02:01]}  Bf8 {[%clk 0:00:07]} 34. f7+ {[%clk 0:02:00]}  Kh7 {[%clk 0:00:07]} 35. Rd8 {[%clk 0:01:49]}  Rxd8 {[%clk 0:00:06]} 36. Qxd8 {[%clk 0:01:48]}  Qxf7 {[%clk 0:00:06]} 37. Qd3+ {[%clk 0:01:44]}  Bf5 {[%clk 0:00:05]} 38. Qg3 {[%clk 0:01:43]}  Bc5 {[%clk 0:00:04]} 39. Be5 {[%clk 0:01:41]}  Be6 {[%clk 0:00:03]} 40. Bf4 {[%clk 0:01:39]}  Bf5 {[%clk 0:00:03]} 41. a4 {[%clk 0:01:39]}  Bd7 {[%clk 0:00:03]} 42. a5 {[%clk 0:01:38]}  Bc6 {[%clk 0:00:03]} 43. Kh2 {[%clk 0:01:37]}  Bd4 {[%clk 0:00:02]} 44. Qd3+ {[%clk 0:01:37]} 1-0


[Site "https://www.chess.com"]

[Event "Titled Tuesday Blitz December 13 Late 2022"]
[White "Ballester Llagaria, Luis Eduardo"]
[Black "Moral Garcia, Serafin"]
[WhiteFideId "2297620"]
[BlackFideId "2201925"]
[WhiteElo "2344"]
[BlackElo "2259"]
[Result "1-0"]
[Round "11"]
[TimeControl "180+1"]
[Date "2022.12.13"]
[WhiteClock "0:01:44"]
[BlackClock "0:02:04"]

1. e4 {[%clk 0:02:53]}  e5 {[%clk 0:02:59]} 2. Nf3 {[%clk 0:02:54]}  Nc6 {[%clk 0:02:59]} 3. Bc4 {[%clk 0:02:53]}  Bc5 {[%clk 0:02:59]} 4. O-O {[%clk 0:02:54]}  Nf6 {[%clk 0:02:59]} 5. d4 {[%clk 0:02:54]}  Bxd4 {[%clk 0:02:59]} 6. Nxd4 {[%clk 0:02:54]}  Nxd4 {[%clk 0:02:59]} 7. f4 {[%clk 0:02:54]}  d6 {[%clk 0:02:59]} 8. fxe5 {[%clk 0:02:55]}  dxe5 {[%clk 0:02:59]} 9. Bg5 {[%clk 0:02:56]}  Be6 {[%clk 0:02:59]} 10. Na3 {[%clk 0:02:56]}  Qe7 {[%clk 0:02:58]} 11. Kh1 {[%clk 0:02:56]}  O-O-O {[%clk 0:02:55]} 12. c3 {[%clk 0:02:56]}  Bxc4 {[%clk 0:02:54]} 13. Nxc4 {[%clk 0:02:57]}  Ne6 {[%clk 0:02:53]} 14. Bxf6 {[%clk 0:02:55]}  gxf6 {[%clk 0:02:53]} 15. Qf3 {[%clk 0:02:56]}  Nf4 {[%clk 0:02:47]} 16. g3 {[%clk 0:02:55]}  Rd3 {[%clk 0:02:46]} 17. Qf2 {[%clk 0:02:55]}  Ng6 {[%clk 0:02:35]} 18. Qxa7 {[%clk 0:02:48]}  c6 {[%clk 0:02:27]} 19. Rad1 {[%clk 0:02:35]}  Rhd8 {[%clk 0:02:19]} 20. Nb6+ {[%clk 0:02:33]}  Kc7 {[%clk 0:02:18]} 21. Nd5+ {[%clk 0:02:32]}  R8xd5 {[%clk 0:02:13]} 22. exd5 {[%clk 0:02:32]}  Rxd5 {[%clk 0:02:12]} 23. Rxd5 {[%clk 0:02:21]}  cxd5 {[%clk 0:02:12]} 24. Qa5+ {[%clk 0:02:22]}  Kc6 {[%clk 0:02:12]} 25. b4 {[%clk 0:02:16]}  b6 {[%clk 0:02:10]} 26. Qa8+ {[%clk 0:02:06]}  Kd6 {[%clk 0:02:10]} 27. Rd1 {[%clk 0:01:54]}  d4 {[%clk 0:02:10]} 28. cxd4 {[%clk 0:01:50]}  e4 {[%clk 0:02:10]} 29. Rc1 {[%clk 0:01:44]}  Ke6 {[%clk 0:02:04]} 30. Qxe4+ {[%clk 0:01:44]} 1-0


[Site "https://www.chess.com"]

[Event "Titled Tuesday Blitz December 13 Late 2022"]
[White "Bortnyk, Olexandr"]
[Black "Pakleza, Zbigniew"]
[WhiteFideId "14120828"]
[BlackFideId "1119290"]
[WhiteElo "2723"]
[BlackElo "2410"]
[Result "1-0"]
[Round "11"]
[TimeControl "180+1"]
[Date "2022.12.13"]
[WhiteClock "0:01:44"]
[BlackClock "0:00:40"]

1. e4 {[%clk 0:02:49]}  d6 {[%clk 0:03:00]} 2. d4 {[%clk 0:02:48]}  Nf6 {[%clk 0:03:01]} 3. Nc3 {[%clk 0:02:46]}  c6 {[%clk 0:03:01]} 4. g3 {[%clk 0:02:29]}  b5 {[%clk 0:03:00]} 5. Bg2 {[%clk 0:02:29]}  e5 {[%clk 0:02:58]} 6. dxe5 {[%clk 0:02:25]}  dxe5 {[%clk 0:02:59]} 7. Qxd8+ {[%clk 0:02:25]}  Kxd8 {[%clk 0:03:00]} 8. f4 {[%clk 0:02:22]}  Nbd7 {[%clk 0:02:59]} 9. Nf3 {[%clk 0:02:22]}  Bc5 {[%clk 0:02:44]} 10. fxe5 {[%clk 0:02:01]}  Ng4 {[%clk 0:02:43]} 11. Bg5+ {[%clk 0:02:01]}  Kc7 {[%clk 0:02:39]} 12. Bf4 {[%clk 0:02:00]}  Kb6 {[%clk 0:02:38]} 13. a4 {[%clk 0:01:58]}  b4 {[%clk 0:01:11]} 14. a5+ {[%clk 0:01:57]}  Kb7 {[%clk 0:01:09]} 15. a6+ {[%clk 0:01:53]}  Kb6 {[%clk 0:00:42]} 16. Na4+ {[%clk 0:01:53]}  Kc7 {[%clk 0:00:42]} 17. e6+ {[%clk 0:01:51]}  Bd6 {[%clk 0:00:42]} 18. Bxd6+ {[%clk 0:01:49]}  Kxd6 {[%clk 0:00:42]} 19. exd7 {[%clk 0:01:50]}  Kxd7 {[%clk 0:00:41]} 20. Bh3 {[%clk 0:01:45]}  Kc7 {[%clk 0:00:39]} 21. Bxg4 {[%clk 0:01:45]}  Bxg4 {[%clk 0:00:40]} 22. Ne5 {[%clk 0:01:46]}  Be6 {[%clk 0:00:40]} 23. O-O-O {[%clk 0:01:44]} 1-0


[Site "https://www.chess.com"]

[Event "Titled Tuesday Blitz December 13 Late 2022"]
[White "Crevatin, Leo"]
[Black "Rorrer, Grayson"]
[WhiteFideId "1726307"]
[BlackFideId "30944996"]
[WhiteElo "2190"]
[BlackElo "2200"]
[Result "0-1"]
[Round "11"]
[TimeControl "180+1"]
[Date "2022.12.13"]
[WhiteClock "0:00:11"]
[BlackClock "0:00:44"]

1. d4 {[%clk 0:03:00]}  Nf6 {[%clk 0:03:00]} 2. Bf4 {[%clk 0:03:00]}  g6 {[%clk 0:02:58]} 3. e3 {[%clk 0:03:00]}  Bg7 {[%clk 0:02:58]} 4. Nf3 {[%clk 0:03:01]}  d6 {[%clk 0:02:58]} 5. h3 {[%clk 0:03:01]}  c5 {[%clk 0:02:57]} 6. Nbd2 {[%clk 0:02:57]}  Nc6 {[%clk 0:02:56]} 7. c3 {[%clk 0:02:56]}  O-O {[%clk 0:02:56]} 8. Be2 {[%clk 0:02:55]}  Qe8 {[%clk 0:02:52]} 9. Bh2 {[%clk 0:02:52]}  a6 {[%clk 0:02:50]} 10. O-O {[%clk 0:02:51]}  cxd4 {[%clk 0:02:41]} 11. exd4 {[%clk 0:02:50]}  Qd8 {[%clk 0:02:35]} 12. a4 {[%clk 0:02:42]}  b6 {[%clk 0:02:34]} 13. Re1 {[%clk 0:02:35]}  Bb7 {[%clk 0:02:34]} 14. Nc4 {[%clk 0:02:34]}  b5 {[%clk 0:02:25]} 15. axb5 {[%clk 0:02:29]}  axb5 {[%clk 0:02:26]} 16. Ne3 {[%clk 0:02:29]}  Qb6 {[%clk 0:02:21]} 17. Qb3 {[%clk 0:02:24]}  b4 {[%clk 0:02:21]} 18. Nc4 {[%clk 0:02:18]}  Qc7 {[%clk 0:02:04]} 19. cxb4 {[%clk 0:01:49]}  Nd5 {[%clk 0:01:55]} 20. Rxa8 {[%clk 0:01:48]}  Rxa8 {[%clk 0:01:55]} 21. Nxd6 {[%clk 0:01:20]}  exd6 {[%clk 0:01:52]} 22. Qxd5 {[%clk 0:01:18]}  Nxd4 {[%clk 0:01:51]} 23. Qxd6 {[%clk 0:01:18]}  Nxe2+ {[%clk 0:01:47]} 24. Rxe2 {[%clk 0:01:18]}  Qc1+ {[%clk 0:01:12]} 25. Re1 {[%clk 0:01:15]}  Qxb2 {[%clk 0:01:03]} 26. Be5 {[%clk 0:01:09]}  Bxe5 {[%clk 0:01:04]} 27. Nxe5 {[%clk 0:01:07]}  Qc3 {[%clk 0:00:54]} 28. Re3 {[%clk 0:00:57]}  Qc1+ {[%clk 0:00:52]} 29. Kh2 {[%clk 0:00:57]}  Qf1 {[%clk 0:00:52]} 30. Nc6 {[%clk 0:00:16]}  Qxf2 {[%clk 0:00:47]} 31. Re7 {[%clk 0:00:16]}  Bxc6 {[%clk 0:00:44]} 32. Qxc6 {[%clk 0:00:16]}  Qf4+ {[%clk 0:00:44]} 33. g3 {[%clk 0:00:11]}  Ra2+ {[%clk 0:00:44]} 0-1


[Site "https://www.chess.com"]

[Event "Titled Tuesday Blitz December 13 Late 2022"]
[White "Domingo Nunez, Ruben"]
[Black "Musovic, Armin"]
[WhiteFideId "22245570"]
[BlackFideId "939935"]
[WhiteElo "2406"]
[BlackElo "2288"]
[Result "0-1"]
[Round "11"]
[TimeControl "180+1"]
[Date "2022.12.13"]
[WhiteClock "0:00:15"]
[BlackClock "0:00:23"]

1. b3 {[%clk 0:02:57]}  Nf6 {[%clk 0:02:59]} 2. Bb2 {[%clk 0:02:58]}  d5 {[%clk 0:03:00]} 3. Nf3 {[%clk 0:02:58]}  Bg4 {[%clk 0:03:00]} 4. e3 {[%clk 0:02:59]}  Bh5 {[%clk 0:03:01]} 5. Be2 {[%clk 0:03:00]}  e6 {[%clk 0:03:01]} 6. O-O {[%clk 0:03:01]}  Bd6 {[%clk 0:03:02]} 7. c4 {[%clk 0:03:01]}  c6 {[%clk 0:03:02]} 8. Nc3 {[%clk 0:03:02]}  Bc7 {[%clk 0:03:03]} 9. Rc1 {[%clk 0:03:03]}  O-O {[%clk 0:03:03]} 10. d4 {[%clk 0:03:03]}  Re8 {[%clk 0:03:03]} 11. h3 {[%clk 0:03:01]}  Nbd7 {[%clk 0:03:03]} 12. Re1 {[%clk 0:02:55]}  Rc8 {[%clk 0:03:03]} 13. Qc2 {[%clk 0:02:43]}  Bb8 {[%clk 0:03:02]} 14. Rcd1 {[%clk 0:02:42]}  Qc7 {[%clk 0:02:59]} 15. g3 {[%clk 0:02:28]}  Bg6 {[%clk 0:02:55]} 16. Bd3 {[%clk 0:02:27]}  Bh5 {[%clk 0:02:56]} 17. Be2 {[%clk 0:02:27]}  Bg6 {[%clk 0:02:54]} 18. Qc1 {[%clk 0:02:27]}  a6 {[%clk 0:02:48]} 19. a4 {[%clk 0:02:20]}  Ne4 {[%clk 0:02:43]} 20. Nxe4 {[%clk 0:02:16]}  Bxe4 {[%clk 0:02:43]} 21. Ng5 {[%clk 0:02:12]}  Bf5 {[%clk 0:02:41]} 22. g4 {[%clk 0:02:11]}  Qh2+ {[%clk 0:02:39]} 23. Kf1 {[%clk 0:02:11]}  Be4 {[%clk 0:02:39]} 24. Bf3 {[%clk 0:02:08]}  Nf6 {[%clk 0:02:18]} 25. Ke2 {[%clk 0:01:46]}  Bg3 {[%clk 0:02:00]} 26. Rf1 {[%clk 0:01:46]}  Bh4 {[%clk 0:01:59]} 27. Nxe4 {[%clk 0:01:39]}  dxe4 {[%clk 0:01:53]} 28. Bh1 {[%clk 0:01:39]}  Qxh3 {[%clk 0:01:47]} 29. Rg1 {[%clk 0:01:40]}  Rcd8 {[%clk 0:01:17]} 30. g5 {[%clk 0:01:35]}  Ng4 {[%clk 0:00:55]} 31. Bxe4 {[%clk 0:01:14]}  Nxf2 {[%clk 0:00:55]} 32. Bf3 {[%clk 0:01:13]}  Nxd1 {[%clk 0:00:52]} 33. Qxd1 {[%clk 0:01:08]}  e5 {[%clk 0:00:50]} 34. d5 {[%clk 0:01:01]}  cxd5 {[%clk 0:00:46]} 35. Bxd5 {[%clk 0:00:59]}  Qh2+ {[%clk 0:00:42]} 36. Rg2 {[%clk 0:00:51]}  Qxg2+ {[%clk 0:00:42]} 37. Bxg2 {[%clk 0:00:52]}  Rxd1 {[%clk 0:00:43]} 38. Kxd1 {[%clk 0:00:53]}  Re7 {[%clk 0:00:39]} 39. Ba3 {[%clk 0:00:34]}  Rd7+ {[%clk 0:00:39]} 40. Ke2 {[%clk 0:00:35]}  Bxg5 {[%clk 0:00:39]} 41. c5 {[%clk 0:00:35]}  Be7 {[%clk 0:00:34]} 42. b4 {[%clk 0:00:33]}  Rc7 {[%clk 0:00:33]} 43. Bb2 {[%clk 0:00:31]}  f6 {[%clk 0:00:33]} 44. Bd5+ {[%clk 0:00:21]}  Kf8 {[%clk 0:00:34]} 45. Kd3 {[%clk 0:00:21]}  a5 {[%clk 0:00:34]} 46. bxa5 {[%clk 0:00:18]}  Rxc5 {[%clk 0:00:30]} 47. Bxb7 {[%clk 0:00:18]}  Rxa5 {[%clk 0:00:30]} 48. Bc6 {[%clk 0:00:19]}  h5 {[%clk 0:00:28]} 49. Bc3 {[%clk 0:00:16]}  Ra7 {[%clk 0:00:26]} 50. a5 {[%clk 0:00:15]}  h4 {[%clk 0:00:25]} 51. a6 {[%clk 0:00:15]}  Rxa6 {[%clk 0:00:23]} 0-1


[Site "https://www.chess.com"]

[Event "Titled Tuesday Blitz December 13 Late 2022"]
[White "Estrada Nieto, Julian"]
[Black "Szyszylo, Rafal"]
[WhiteFideId "5101018"]
[BlackFideId "1109626"]
[WhiteElo "2195"]
[BlackElo "1981"]
[Result "1-0"]
[Round "11"]
[TimeControl "180+1"]
[Date "2022.12.14"]
[WhiteClock "0:00:59"]
[BlackClock "0:00:05"]

1. Nf3 {[%clk 0:03:00]}  d6 {[%clk 0:02:59]} 2. e4 {[%clk 0:02:57]}  g6 {[%clk 0:03:00]} 3. Nc3 {[%clk 0:02:57]}  Nf6 {[%clk 0:03:00]} 4. d4 {[%clk 0:02:57]}  Bg7 {[%clk 0:02:59]} 5. Be2 {[%clk 0:02:57]}  O-O {[%clk 0:02:59]} 6. O-O {[%clk 0:02:58]}  Nc6 {[%clk 0:02:58]} 7. h3 {[%clk 0:02:55]}  e5 {[%clk 0:02:58]} 8. dxe5 {[%clk 0:02:52]}  Nxe5 {[%clk 0:02:50]} 9. Nxe5 {[%clk 0:02:50]}  dxe5 {[%clk 0:02:51]} 10. Be3 {[%clk 0:02:48]}  Be6 {[%clk 0:02:45]} 11. Qc1 {[%clk 0:02:44]}  c6 {[%clk 0:02:42]} 12. Bh6 {[%clk 0:02:36]}  b5 {[%clk 0:02:41]} 13. Bxg7 {[%clk 0:02:34]}  Kxg7 {[%clk 0:02:41]} 14. a3 {[%clk 0:02:26]}  a5 {[%clk 0:02:40]} 15. Rd1 {[%clk 0:02:06]}  Qc7 {[%clk 0:02:24]} 16. Qe3 {[%clk 0:02:05]}  Rfd8 {[%clk 0:02:09]} 17. Qc5 {[%clk 0:01:55]}  Rxd1+ {[%clk 0:01:32]} 18. Rxd1 {[%clk 0:01:54]}  Ra7 {[%clk 0:01:23]} 19. Rd6 {[%clk 0:01:44]}  Nd7 {[%clk 0:01:22]} 20. Qxc6 {[%clk 0:01:44]}  b4 {[%clk 0:01:11]} 21. Nd5 {[%clk 0:01:37]}  Bxd5 {[%clk 0:01:06]} 22. exd5 {[%clk 0:01:17]}  bxa3 {[%clk 0:01:02]} 23. bxa3 {[%clk 0:01:17]}  Kf8 {[%clk 0:00:11]} 24. Bb5 {[%clk 0:01:12]}  Nb8 {[%clk 0:00:08]} 25. Qe8+ {[%clk 0:01:04]}  Kg7 {[%clk 0:00:07]} 26. Qxe5+ {[%clk 0:01:04]}  f6 {[%clk 0:00:06]} 27. Qxf6+ {[%clk 0:01:02]}  Kg8 {[%clk 0:00:06]} 28. Rd8+ {[%clk 0:01:02]}  Qxd8 {[%clk 0:00:06]} 29. Qxd8+ {[%clk 0:01:03]}  Kf7 {[%clk 0:00:07]} 30. Qxb8 {[%clk 0:01:02]}  Re7 {[%clk 0:00:07]} 31. d6 {[%clk 0:01:01]}  Re1+ {[%clk 0:00:06]} 32. Kh2 {[%clk 0:01:01]}  Rd1 {[%clk 0:00:06]} 33. Bc4+ {[%clk 0:01:01]}  Kf6 {[%clk 0:00:06]} 34. Qf8+ {[%clk 0:00:58]}  Ke5 {[%clk 0:00:06]} 35. Qe7+ {[%clk 0:00:58]}  Kd4 {[%clk 0:00:05]} 36. d7 {[%clk 0:00:59]}  Kxc4 {[%clk 0:00:06]} 37. d8=Q {[%clk 0:00:59]}  Rxd8 {[%clk 0:00:05]} 38. Qxd8 {[%clk 0:00:59]} 1-0


[Site "https://www.chess.com"]